Cogmind - Beta 13 *** ADVENTURER MODE // 2024.03.19 @ 10:44:46 Player: skye Result: Destroyed by Y-45 Defender with Beam Rifle Performance ------------- Evolutions (1) 500 Regions Visited (2) 400 Robots Destroyed (27) 135 Value Destroyed (526) 526 Prototype IDs (0) 0 Alien Tech Used (0) 0 Bonus (0) 0 TOTAL SCORE: 1561 Bonus ------- None Cogmind --------- Core Integrity 0/400 Matter 300/300 Energy 91/125 System Corruption 0% Temperature Warm (167) Movement Walking (120) Location -9/Materials Parts ------- > --- POWER (1) -------- Light Ion Engine > --- PROPULSION (3) --- Aluminum Leg Compact Wheel > --- UTILITY (3) ------ Sensor Array Signal Interpreter ECM Suite > --- WEAPON (2) ------- Particle Gun > --- INVENTORY (5) ---- Heat Sink Improved Heat Sink Reaction Control System Datajack Improved Datajack Peak State ------------ > --- POWER ------------ Light Nuclear Core > --- PROPULSION ------- Armored Wheel Armored Wheel > --- UTILITY ---------- Small Storage Unit Sensor Array > --- WEAPON ----------- Small Laser Assault Rifle > --- INVENTORY -------- Light Ion Engine Aluminum Leg Aluminum Leg Compact Wheel Armored Wheel Armored Wheel Weight Redist. System Medium Laser [Rating: 12] Favorites ----------- Power Light Nuclear Core Engine Light Ion Engine Power Core Light Nuclear Core Propulsion Armored Wheel Leg Aluminum Leg Wheel Armored Wheel Flight Unit Flight Unit Utility Sensor Array Device Sensor Array Storage Small Storage Unit Processor Signal Interpreter Hackware Hacking Suite Weapon Small Laser Energy Gun Small Laser Ballistic Gun Light Assault Rifle Special Melee Weapon Datajack Build | -11 -10 -9 ------- Run | Yrd Mat Mat Slots Evolved 2 | . . 2 Power . | . . . Propulsion 1 | . . 1 Utility 1 | . . 1 Weapon . | . . . Parts Attached 34 | 6 13 15 Power 5 | 1 1 3 Engine 4 | 1 . 3 Core 1 | . 1 . Reactor . | . . . Propulsion 10 | 2 4 4 Treads . | . . . Leg 3 | 2 . 1 Wheel 4 | . 2 2 Hover . | . . . Flight 3 | . 2 1 Utility 11 | 1 3 7 Device 7 | . 2 5 Storage 1 | 1 . . Processor 2 | . 1 1 Hackware 1 | . . 1 Protection . | . . . Artifact . | . . . Weapon 8 | 2 5 1 Energy Gun 2 | 1 . 1 Energy Cannon . | . . . Ballistic Gun 3 | 1 2 . Ballistic Cannon . | . . . Launcher . | . . . Special Weapon . | . . . Impact Weapon . | . . . Slashing Weapon . | . . . Piercing Weapon . | . . . Special Melee Weapon 3 | . 3 . Unidentified Prototypes . | . . . Parts Lost 9 | . . 9 Power 1 | . . 1 Propulsion 4 | . . 4 Utility 2 | . . 2 Weapon 2 | . . 2 Highest Loss Streak 6 | . . 6 To Critical Strikes . | . . . Average Slot Usage (%) 86 | . 98 65 Engine 3 | . 1 8 Core 8 | . 12 2 Wheel 17 | . 24 7 Flight 3 | . 3 5 Device 14 | . 13 15 Storage 3 | . 4 . Processor 9 | . 9 11 Hackware 1 | . . 3 Energy Gun 11 | . 14 8 Ballistic Gun 7 | . 8 4 Special Melee Weapon 3 | . 5 . Naked Turns . | . . . Heaviest Build 14 | 11 14 9 Greatest Support 30 | 20 30 12 Greatest Overweight (x) 3 | . 3 2 Average Overweight (x) . | . . . Largest Inventory Capacity 8 | 8 8 5 Average Capacity 5 | 6 6 5 Most Carried 8 | 4 8 5 Average Carried 4 | 2 5 3 Final Capacity 8 | 8 5 5 Final Carried 5 | 4 5 5 Class Distribution -------------------- 85% | Mutant 11% | Hacker-Mutant Dominant Class ---------------- Mutant | -10/Materials Mutant | -9/Materials Resources | -11 -10 -9 ----------- Run | Yrd Mat Mat Matter Collected 585 | 220 207 158 Remotely . | . . . Salvage Created 892 | . 353 539 Parts 59 | . 33 26 Haulers Intercepted . | . . . Recyclers Shooed . | . . . Parts Field Recycled . | . . . Retrieved Matter . | . . . Parts Self-Destructed . | . . . Prevented . | . . . Kills | -11 -10 -9 ------- Run | Yrd Mat Mat Combat Hostiles Destroyed 19 | . 7 12 Guns 19 | . 7 12 Classes Destroyed 7 | . 5 2 Worker 1 | . 1 . Recycler 3 | . 1 2 Operator 1 | . . 1 Watcher 3 | . 2 1 Swarmer 10 | . 3 7 Grunt 8 | . 4 4 Sentry 1 | . . 1 Best Kill Streak 7 | . 4 7 Combat Bots Only 4 | . 2 4 Max Kills in Single Turn 2 | . 1 2 Gunslinging . | . . . Exploded . | . . . Melee . | . . . Uniques/NPCs Destroyed . | . . . Combat | -11 -10 -9 -------- Run | Yrd Mat Mat Hostile Shots Fired 202 | . 41 161 Missed 65 | . 14 51 Damage Taken 1114 | . 221 893 Core 473 | . 65 408 Absorbed by Shields . | . . . Ignored by Resistances 352 | . 69 283 Core Remaining (%) 87 | 100 74 . Volleys Fired 112 | . 40 72 Largest 2 | . 2 2 Hottest 65 | . 60 65 Shots Fired 151 | . 57 94 Gun 151 | . 57 94 Cannon . | . . . Launcher . | . . . Special . | . . . Kinetic 72 | . 19 53 Thermal 79 | . 38 41 Explosive . | . . . Electromagnetic . | . . . Robot Hit Streak 22 | . 22 19 Robot Miss Streak 4 | . 3 4 Penetration Max . | . . . Secondary Targets 4 | . 1 3 Max Gunslinging Chain 1 | . 1 1 Shots Hit Robots 115 | . 46 69 Core Hits 45 | . 19 26 Critical Kills . | . . . Critical Parts Destroyed . | . . . Critical Strikes 1 | . . 1 Burn 1 | . . 1 Melee Attacks 2 | . 2 . Impact . | . . . Slashing . | . . . Piercing . | . . . Sneak Attacks 2 | . 2 . Combat Hostiles . | . . . Follow-up Attacks . | . . . Damage Inflicted 1224 | . 494 730 Guns 1224 | . 494 730 Cannons . | . . . Explosions . | . . . Melee . | . . . Ramming . | . . . Kinetic 430 | . 139 291 Thermal 794 | . 355 439 Explosive . | . . . Electromagnetic . | . . . Impact . | . . . Slashing . | . . . Piercing . | . . . Highest Corruption . | . . . Average Corruption . | . . . Corruption Purged . | . . . Corruption Blocked . | . . . Overload Shots . | . . . Overflow Damage . | . . . Projectiles . | . . . Explosions . | . . . Melee . | . . . Knockbacks . | . . . Impact . | . . . Kinetic . | . . . Secondary . | . . . Self-Inflicted Damage . | . . . Shots . | . . . Rammed . | . . . Targets Rammed . | . . . Kicked . | . . . Crushed . | . . . Highest Temperature 158 | . 82 158 Average Temperature 37 | . 28 45 Received Heat Transfer 588 | . 123 465 Siege Activations . | . . . Robots Corrupted . | . . . Combat Hostiles . | . . . Parts Fried . | . . . Impact Corruptions . | . . . Robots Melted . | . . . Combat Hostiles . | . . . Parts Melted 2 | . . 2 Heat Transferred 1879 | . 800 1079 Parts Sabotaged . | . . . Parts Stolen . | . . . Parts Stripped . | . . . Power Chain Reactions . | . . . Alert | -11 -10 -9 ------- Run | Yrd Mat Mat Peak Influence 233 | . 147 233 Initial 52 | . . 52 Average 76 | . 43 147 Maximum Alert Level 1 | . . 1 Low Security (%) 86 | 100 100 59 Level 1 13 | . . 40 Level 2 . | . . . Level 3 . | . . . Level 4 . | . . . Level 5 . | . . . High Security . | . . . Max Security . | . . . Squads Dispatched 2 | . 1 1 Investigation 1 | . 1 . Extermination . | . . . Reinforcement 1 | . . 1 Assault . | . . . Garrison . | . . . Intercept . | . . . Searches Triggered . | . . . Construction Impeded . | . . . Haulers Reinforced . | . . . Active Scanning Responses . | . . . Cargo Convoy Interrupts . | . . . Stealth | -11 -10 -9 --------- Run | Yrd Mat Mat Distress Signals 3 | . 3 . Communications Jammed . | . . . Distress Signals . | . . . Times Spotted 37 | . 14 23 Peak Tracking Total 7 | . 4 7 Tactical Retreats 2 | . 1 1 Traps | -11 -10 -9 ------- Run | Yrd Mat Mat Traps Triggered 1 | . 1 . Indirectly . | . . . Trap Hack Attempts . | . . . Triggered . | . . . Disarmed . | . . . Reprogrammed . | . . . Reused . | . . . Traps Extracted . | . . . Installed . | . . . Triggered . | . . . Machines | -11 -10 -9 ---------- Run | Yrd Mat Mat Machines Disabled . | . . . Max in Single Turn . | . . . Machines Repaired . | . . . Machines Dismantled . | . . . Machines Sabotaged . | . . . Overloaded Fab Kills . | . . . Hacking | -11 -10 -9 --------- Run | Yrd Mat Mat Machines Accessed 10 | . 6 4 Terminals 9 | . 5 4 Fabricators . | . . . Repair Stations . | . . . Recycling Units 1 | . 1 . Scanalyzers . | . . . Garrison Access . | . . . Total Hacks 14 | . 9 5 Successful 5 | . 3 2 Failed 9 | . 6 3 Catastrophic 4 | . 4 . Database Lockouts . | . . . Manual 12 | . 8 4 Terminals 13 | . 8 5 Fabricators . | . . . Repair Stations . | . . . Recycling Units 1 | . 1 . Scanalyzers . | . . . Garrison Access . | . . . Terminal Hacks 4 | . 2 2 Branch Access Points 1 | . 1 . Terminal Index 2 | . 1 1 Alert Level 1 | . . 1 Fabricator Hacks . | . . . Repair Station Hacks . | . . . Recycling Unit Hacks 1 | . 1 . Report Inventory 1 | . 1 . Scanalyzer . | . . . Garrison Access Hacks . | . . . Unauthorized Hacks . | . . . Terminals . | . . . Fabricators . | . . . Repair Stations . | . . . Recycling Units . | . . . Scanalyzers . | . . . Garrison Access . | . . . Data Cores Recovered 1 | . . 1 Used . | . . . Hacking Detections 9 | . 5 4 Full Trace Events 1 | . 1 . Feedback Events . | . . . Feedback Blocked . | . . . Robot Schematics Acquired . | . . . Robots Built . | . . . Authchips . | . . . Time . | . . . Total Robot Build Rating . | . . . Part Schematics Acquired . | . . . Parts Built . | . . . Authchips . | . . . Time . | . . . Total Part Build Rating . | . . . Parts Repaired . | . . . Time . | . . . Parts Recycled . | . . . Recycled Matter . | . . . Retrieved Matter . | . . . Retrieved Components . | . . . Parts Scanalyzed . | . . . Part Schematics Acquired . | . . . Parts Damaged . | . . . Bothacking | -11 -10 -9 ------------ Run | Yrd Mat Mat Used RIF Installer . | . . . Robots Hacked 1 | . 1 . Non-combat 1 | . 1 . Combat . | . . . Robot Hacks Applied 2 | . 2 . parse_system 1 | . 1 . no_distress 1 | . 1 . Relay Couplers Released . | . . . Fabnet Peak Effective % . | . . . Robots Rewired . | . . . Allies Hacked . | . . . Hacks Repelled . | . . . Allies | -11 -10 -9 -------- Run | Yrd Mat Mat Total Allies . | . . . Largest Group . | . . . Highest-Rated Group . | . . . Highest-Rated Ally . | . . . Total Orders . | . . . Ally Attacks . | . . . Total Damage . | . . . Kills . | . . . Allies Corrupted . | . . . Allies Melted . | . . . Intel | -11 -10 -9 ------- Run | Yrd Mat Mat Robot Analysis Total . | . . . Derelict Logs Recovered . | . . . Drone Launches . | . . . Drone Recoveries . | . . . Exploration | -11 -10 -9 ------------- Run | Yrd Mat Mat Turns Passed 1604 | 83 971 550 Spaces Moved 1581 | 61 1051 469 Core 15 | 3 3 9 Treads . | . . . Legs 70 | 58 5 7 Wheels 1052 | . 764 288 Hover . | . . . Flight 444 | . 279 165 Fastest Speed 37 | 50 37 37 Average Speed 76 | 116 76 72 Slowest Speed 200 | 120 200 150 Overloaded Moves . | . . . Propulsion Burnouts . | . . . Robots Hopped 5 | . 4 1 Cave-ins Triggered . | . . . Exploration Rate (%) 37 | 4 75 32 Regions Visited 2 Branch Regions . Pre-discovered Areas . | . . . Known Exits Taken 1 | . 1 . Unknown Exits Taken 1 | 1 . . Scrap Searched . | . . . Spaces Dug . | . . . Terrain Destroyed . | . . . Melee . | . . . Projectile . | . . . AOE . | . . . Terrain Rammed . | . . . Walls Destroyed . | . . . Machines Disabled . | . . . Actions | -11 -10 -9 --------- Run | Yrd Mat Mat Total 1828 | 70 1167 591 Wait 56 | . 31 25 Move 1569 | 60 1042 467 Hop 5 | . 4 1 Pick Up 21 | 4 12 5 Fast Attach 20 | 6 6 8 Attach 5 | . 1 4 Detach 6 | . 3 3 Swap 9 | . 6 3 Drop 23 | . 20 3 Fire 112 | . 40 72 Melee 2 | . 2 . Ram . | . . . Kick . | . . . Crush . | . . . Escape Stasis . | . . . Rewire . | . . . Trap . | . . . Miscellaneous . | . . . Route ------- -11/Scrapyard -10/Materials (discovered 3 exits: *Mat / *Min x2) -9/Materials History --------- Turn | Location | Event 2 | -11/Scrapyard | Discovered new exit (range 16) 84 | -11/Scrapyard | Entered Materials 222 | -10/Materials | Discovered new exit (range 11) 308 | -10/Materials | Build established: Mutant 492 | -10/Materials | Discovered new exit (range 16) 505 | -10/Materials | Identified exit to Materials 989 | -10/Materials | Identified exit to Mines 1055 | -10/Materials | Entered another Materials area 1055 | -9/Materials | Evolved 2 slots: Propulsion x1, Utility x1 1210 | -9/Materials | Core integrity fell below 50% 1235 | -9/Materials | Lost 6 parts (1p3n1u1w) 1555 | -9/Materials | Core integrity fell below 20% 1605 | -9/Materials | Destroyed by Y-45 Defender with Beam Rifle Last Messages --------------- O-16 Technician locks terminal. R-06 Scavenger collects Lgt. Ion Engine. Arm. Wheel destroyed. G-34 Mercenary destroyed. R-06 Scavenger collects Heat Sink. Acquired Aluminum Leg. Acquired 29 matter. R-06 Scavenger collects Sml. Laser. R-06 Scavenger destroyed. R-06 Scavenger collects Heat Sink. R-06 Scavenger destroyed. Acquired Heat Sink. Acquired 14 matter. Acquired Com. Wheel. S-10 Pest destroyed. Acquired 10 matter. S-10 Pest destroyed. Lgt. Assault Rifle melted. S-10 Pest destroyed. S-10 Pest suffers critical hit (Burn). Map ----- +----------------------------------------------------+ | | | | | | | | | | | ?????????????????????????????????????????????????? | | ?????????????????????????????????????????????????? | | ?????????????????????????????????????????????????? | | ?????????????????????????????????????????????????? | | ?????????????????????????????????????????????????? | | ?????????????????????????????????????????????????? | | ?????????????????????##########??????????????????? | | ?????????????????????# #??????????????????? | | ?????????????????????# #??????????????????? | | ?????????????????????# """ #??????????????????? | | ?????????????????????# """"" #??????????????????? | | ?????????????????????# """"" #??????????????????? | | ?????????????????????# """"" #??????????????????? | | ?????????????????????# """ #??????????????????? | | ?????????????????????# #??????????????????? | | ?????????????????????# = #???X??????????????? | | ?????????????????????#####+####?????x? #?????????? | | ???????????????????????# ####### +?????????? | | ???????????????????????# #?????????? | | ?????????????########### !T ! #?????????? | | ?????????? Y *%% @ %* #?????????? | | ?????????? s %* =*%[!###+#######?????????? | | ????????????#+###### ## ##???????????????????? | | ???????????????????# ?# #????????????????????? | | ???????????????????# ??# #????????????????????? | | ???????????????????# ??# #?????????########???? | | ???????????????????# ???# #?????????#!!//!!#???? | | ???????????????????# ?# #?????????#!! / !#???? | | ???????????????????# ## ##????????# #???? | | ???????????????????# # k########## ##### | | ?????????????????### # ^ | | ?????????????????? # T ^ | | ?????????????????? # * | | ??????????????????# # ##########+######### | | ??????????????????# #######?????# #???# | | ??????????????????# #???????????# """ #???# | | ??????????????????# #???????????# """ #???# | | ??????????????????# #???????????# """ #???# | | ??????????????????# ########????# #???# | | ??????????????????# # """ #????# """ #???# | | ??????????????????# # """ #????# """ #???# | | ??????????????????# # """ #????# """ #???# | | ??????????????????# +% #????# #???# | | ??????????????????# # #????##########???# | | ??????????????????# # % #?????????????????# | +----------------------------------------------------+ Best States ------------- Heat Dissipation 42 Energy Generation 14 Energy Capacity 265 Matter Stores 300 Matter Capacity 300 Sight Range 16 Robot Scan Range 14 Terrain Scan Density 10 ECM Strength 1 Additional Mass Support 6 Resistance: KI 20 Resistance: TH 20 Resistance: EX 20 Resistance: EM 20 Resistance: I 20 Resistance: S 20 Resistance: P 20 Evasion (%) 62 Offensive Hacking 20 Item Schematics ----------------- None Robot Schematics ------------------ None Fabricated ------------ Nothing Alien Tech Used ----------------- None Achievements -------------- None Challenges ------------ None Game ------ Seed DerelictStasisVibroblade Manual? 0 Play Time 00:20:23 Cumulative 16.8 hours Start 2024.03.19 @ 10:26:00 End 2024.03.19 @ 10:44:46 Sessions 1 Manual Loads 0 Difficulty Adventurer Special Mode None Game No. 11 Rogue 0 Adventurer 11 Explorer 0 Win Type - Total 0 Types 0/0/0/0/0/0/0/0/0 Lore% 18 Gallery% 26 Achievement% 21 Wizard Run 0 Options --------- Layout 1 ASCII 0 Keyboard 1 Movement Vi Keybinds 0 Fullscreen 1 Font 24/Terminus Map View 50x40 Zoom Use 0% Tactical HUD 0 Map Filters NONE Filters NONE Steam 1 RUN: 941c5998-17d4-4e31-a989-4c9d17e9702c